[Event "*** Titled Tuesday 3|2 Blitz"]
[Site "Chess.com"]
[Date "2016.07.05"]
[Round "4"]
[White "Zhani-Z"]
[Black "WanderingPuppet"]
[Result "1-0"]
[WhiteElo "2260"]
[BlackElo "2291"]
[TimeControl "180+2"]
[EndTime "11:49:53 PDT"]
[Termination "Zhani-Z won by resignation"]

1. e4 {[%clk 0:03:01.9]} 1... c5 {[%clk 0:03:00.5]} 2. Nf3 {[%clk 0:03:02.5]}
2... d6 {[%clk 0:03:01.6]} 3. d4 {[%clk 0:03:04]} 3... cxd4 {[%clk 0:03:03.5]}
4. Nxd4 {[%clk 0:03:05.6]} 4... Nf6 {[%clk 0:03:05.2]} 5. Nc3 {[%clk 0:03:07.2]}
5... a6 {[%clk 0:03:05.8]} 6. Bc4 {[%clk 0:03:08.7]} 6... e6 {[%clk 0:03:07.3]}
7. Bb3 {[%clk 0:03:09.5]} 7... b5 {[%clk 0:03:08.4]} 8. O-O {[%clk 0:03:08.5]}
8... Be7 {[%clk 0:03:09.3]} 9. Qf3 {[%clk 0:03:09.7]} 9... Qc7 {[%clk
0:03:09.3]} 10. Qg3 {[%clk 0:03:10.6]} 10... O-O {[%clk 0:03:08.7]} 11. Bh6
{[%clk 0:03:11.4]} 11... Ne8 {[%clk 0:03:10]} 12. Rad1 {[%clk 0:03:11.9]} 12...
Kh8 {[%clk 0:03:01.8]} 13. Bg5 {[%clk 0:03:12.6]} 13... Bxg5 {[%clk 0:03:01.6]}
14. Qxg5 {[%clk 0:03:13.4]} 14... Nf6 {[%clk 0:03:00.6]} 15. f3 {[%clk
0:03:13.6]} 15... Nc6 {[%clk 0:02:38.7]} 16. Nxc6 {[%clk 0:03:10.7]} 16... Qxc6
{[%clk 0:02:40.6]} 17. Kh1 {[%clk 0:03:12]} 17... Bb7 {[%clk 0:02:29.8]} 18. Rd2
{[%clk 0:03:07.5]} 18... h6 {[%clk 0:02:20.5]} 19. Qg3 {[%clk 0:03:06.5]} 19...
Rad8 {[%clk 0:02:16.3]} 20. Rfd1 {[%clk 0:03:07.5]} 20... Nh5 {[%clk 0:02:05.7]}
21. Qh4 {[%clk 0:03:03.6]} 21... Nf6 {[%clk 0:02:06.2]} 22. e5 {[%clk
0:03:01.4]} 22... Nd5 {[%clk 0:01:53.7]} 23. Nxd5 {[%clk 0:03:00.3]} 23... exd5
{[%clk 0:01:52.7]} 24. Bxd5 {[%clk 0:03:00.7]} 24... Qb6 {[%clk 0:01:49.2]} 25.
Bxb7 {[%clk 0:03:02.2]} 25... Qxb7 {[%clk 0:01:51.1]} 26. Rxd6 {[%clk
0:03:01.5]} 26... Rde8 {[%clk 0:01:38.7]} 27. f4 {[%clk 0:02:58.9]} 27... Qe4
{[%clk 0:01:36.7]} 28. Qf2 {[%clk 0:02:58.6]} 28... Rc8 {[%clk 0:01:06.4]} 29.
c3 {[%clk 0:02:58.3]} 29... a5 {[%clk 0:00:42.9]} 30. Re1 {[%clk 0:02:56.3]}
30... Qf5 {[%clk 0:00:38.5]} 31. Rd4 {[%clk 0:02:43]} 31... Rfe8 {[%clk
0:00:32.9]} 32. h3 {[%clk 0:02:39.8]} 32... f6 {[%clk 0:00:26.4]} 33. exf6
{[%clk 0:02:39.5]} 33... Qxf6 {[%clk 0:00:21.4]} 34. Rde4 {[%clk 0:02:38.1]}
34... Rxe4 {[%clk 0:00:21.4]} 35. Rxe4 {[%clk 0:02:39.5]} 35... Qf7 {[%clk
0:00:20]} 36. a3 {[%clk 0:02:39.2]} 36... Rd8 {[%clk 0:00:15.4]} 37. Rd4 {[%clk
0:02:39.7]} 37... Re8 {[%clk 0:00:16.1]} 38. Qd2 {[%clk 0:02:39.8]} 38... Qf5
{[%clk 0:00:15.1]} 39. Rd8 {[%clk 0:02:39]} 39... Rxd8 {[%clk 0:00:11.1]} 40.
Qxd8+ {[%clk 0:02:39.6]} 40... Kh7 {[%clk 0:00:13]} 41. Qd2 {[%clk 0:02:40.1]}
41... Qb1+ {[%clk 0:00:07.1]} 42. Kh2 {[%clk 0:02:40.9]} 42... Qe4 {[%clk
0:00:08.1]} 43. Qd4 {[%clk 0:02:38.8]} 43... Qc2 {[%clk 0:00:07.4]} 44. b4
{[%clk 0:02:27.8]} 44... a4 {[%clk 0:00:06.1]} 45. Qe5 {[%clk 0:02:28.4]} 45...
Qb3 {[%clk 0:00:05.5]} 46. Qxb5 {[%clk 0:02:10.4]} 46... Qxa3 {[%clk 0:00:07]}
47. Qf5+ {[%clk 0:02:11.3]} 47... Kg8 {[%clk 0:00:07.1]} 48. Qd5+ {[%clk
0:01:55.9]} 48... Kh7 {[%clk 0:00:08]} 49. Qe4+ {[%clk 0:01:57]} 49... Kg8
{[%clk 0:00:08.8]} 50. h4 {[%clk 0:01:54.3]} 50... Qb3 {[%clk 0:00:06.7]} 51. f5
{[%clk 0:01:39.4]} 51... a3 {[%clk 0:00:07.2]} 52. Qe8+ {[%clk 0:01:40.5]} 52...
Kh7 {[%clk 0:00:07.7]} 53. Qg6+ {[%clk 0:01:41.9]} 53... Kg8 {[%clk 0:00:06.9]}
54. f6 {[%clk 0:01:43.2]} 54... Qf7 {[%clk 0:00:04.7]} 55. Qe4 {[%clk
0:01:38.8]} 55... a2 {[%clk 0:00:04.2]} 56. Qa8+ {[%clk 0:01:38.3]} 56... Kh7
{[%clk 0:00:04.5]} 57. b5 {[%clk 0:01:34.5]} 57... gxf6 {[%clk 0:00:04.1]} 58.
b6 {[%clk 0:01:31.7]} 58... f5 {[%clk 0:00:03.4]} 59. b7 {[%clk 0:01:24.5]}
59... a1=Q {[%clk 0:00:04.6]} 60. Qxa1 {[%clk 0:01:24.5]} 60... Qxb7 {[%clk
0:00:06]} 61. Qa5 {[%clk 0:01:22.5]} 61... Kg6 {[%clk 0:00:07.1]} 62. Qe5 {[%clk
0:01:22.7]} 62... Qc6 {[%clk 0:00:06.8]} 63. Qg3+ {[%clk 0:01:21.3]} 63... Kf6
{[%clk 0:00:07.4]} 64. Qf3 {[%clk 0:01:16.6]} 64... Qc4 {[%clk 0:00:07.5]} 65.
Kh3 {[%clk 0:01:15.5]} 65... Kg6 {[%clk 0:00:04.2]} 66. Qg3+ {[%clk 0:01:15]}
66... Kf6 {[%clk 0:00:05.5]} 67. Qd6+ {[%clk 0:01:16]} 67... Kg7 {[%clk
0:00:07]} 68. Qd4+ {[%clk 0:01:16.8]} 68... Qxd4 {[%clk 0:00:05.8]} 69. cxd4
{[%clk 0:01:18.3]} 69... Kf6 {[%clk 0:00:07.1]} 70. Kg3 {[%clk 0:01:19.8]} 70...
Ke6 {[%clk 0:00:08]} 71. Kf4 {[%clk 0:01:21.4]} 71... Kd5 {[%clk 0:00:08.1]} 72.
Kxf5 {[%clk 0:01:22]} 72... Kxd4 {[%clk 0:00:10]} 73. Kg6 {[%clk 0:01:23.6]} 1-0

[Event "*** Titled Tuesday 3|2 Blitz"]
[Site "Chess.com"]
[Date "2016.07.05"]
[Round "4"]
[White "SmoothAsAHedgehog"]
[Black "cabalista"]
[Result "0-1"]
[WhiteElo "2498"]
[BlackElo "2425"]
[TimeControl "180+2"]
[EndTime "11:49:56 PDT"]
[Termination "cabalista won by checkmate"]

1. Nf3 {[%clk 0:03:01.9]} 1... Nf6 {[%clk 0:02:59.9]} 2. c4 {[%clk 0:03:01.2]}
2... g6 {[%clk 0:03:00]} 3. g3 {[%clk 0:03:01.1]} 3... Bg7 {[%clk 0:03:00.8]} 4.
Bg2 {[%clk 0:03:02]} 4... O-O {[%clk 0:03:02.7]} 5. Nc3 {[%clk 0:02:59.3]} 5...
d6 {[%clk 0:03:04.6]} 6. O-O {[%clk 0:02:58.8]} 6... e5 {[%clk 0:03:06.5]} 7. d3
{[%clk 0:02:59.3]} 7... Nc6 {[%clk 0:03:05.8]} 8. Rb1 {[%clk 0:02:59.5]} 8... a5
{[%clk 0:03:06.1]} 9. a3 {[%clk 0:02:58.4]} 9... h6 {[%clk 0:02:56.3]} 10. b4
{[%clk 0:02:58.8]} 10... axb4 {[%clk 0:02:56.9]} 11. axb4 {[%clk 0:03:00.7]}
11... Be6 {[%clk 0:02:57.3]} 12. b5 {[%clk 0:03:02]} 12... Ne7 {[%clk
0:02:57.7]} 13. Qb3 {[%clk 0:03:03.5]} 13... Qd7 {[%clk 0:02:51.7]} 14. Rd1
{[%clk 0:03:04.2]} 14... Bh3 {[%clk 0:02:50.6]} 15. Bb2 {[%clk 0:03:05.4]} 15...
Bxg2 {[%clk 0:02:47.3]} 16. Kxg2 {[%clk 0:03:07.3]} 16... Nh5 {[%clk 0:02:28.4]}
17. d4 {[%clk 0:03:06.9]} 17... Qg4 {[%clk 0:02:09.8]} 18. dxe5 {[%clk 0:02:58]}
18... dxe5 {[%clk 0:02:10.1]} 19. Ng1 {[%clk 0:02:05.4]} 19... Nf4+ {[%clk
0:01:47.7]} 20. Kf1 {[%clk 0:01:59.9]} 20... Nh3 {[%clk 0:01:40.5]} 21. f3
{[%clk 0:01:45.6]} 21... Qh5 {[%clk 0:01:37.9]} 22. Nd5 {[%clk 0:01:43.2]} 22...
Nxd5 {[%clk 0:01:37.5]} 23. cxd5 {[%clk 0:01:41.8]} 23... Rfe8 {[%clk
0:01:14.3]} 24. e4 {[%clk 0:01:32.5]} 24... Bf8 {[%clk 0:01:00.6]} 25. Rbc1
{[%clk 0:01:28.1]} 25... Bd6 {[%clk 0:01:00.4]} 26. Kg2 {[%clk 0:01:22.1]} 26...
Nxg1 {[%clk 0:01:00.7]} 27. Rxg1 {[%clk 0:01:23.5]} 27... b6 {[%clk 0:01:01]}
28. Ra1 {[%clk 0:01:19.6]} 28... f5 {[%clk 0:00:52.4]} 29. Qd3 {[%clk
0:01:09.6]} 29... f4 {[%clk 0:00:40.9]} 30. gxf4 {[%clk 0:01:02.5]} 30... Rxa1
{[%clk 0:00:33.8]} 31. Bxa1 {[%clk 0:00:56.2]} 31... exf4 {[%clk 0:00:33.3]} 32.
Kh1 {[%clk 0:00:22.5]} 32... Be5 {[%clk 0:00:32.2]} 33. Bxe5 {[%clk 0:00:18.5]}
33... Rxe5 {[%clk 0:00:32.1]} 34. Qc3 {[%clk 0:00:19.9]} 34... Kf8 {[%clk
0:00:29.2]} 35. Rxg6 {[%clk 0:00:16.2]} 35... Qh3 {[%clk 0:00:07.9]} 36. Rg2
{[%clk 0:00:12]} 36... Rg5 {[%clk 0:00:06.5]} 37. Qa3+ {[%clk 0:00:10.2]} 37...
Kf7 {[%clk 0:00:06.3]} 38. Qa2 {[%clk 0:00:05]} 38... Qxf3 {[%clk 0:00:06.6]}
39. h4 {[%clk 0:00:04.6]} 39... Qf1+ {[%clk 0:00:05.8]} 40. Kh2 {[%clk
0:00:05.2]} 40... Rxg2+ {[%clk 0:00:06]} 41. Qxg2 {[%clk 0:00:07.1]} 41... Qe1
{[%clk 0:00:06.7]} 42. Kh3 {[%clk 0:00:05.9]} 42... h5 {[%clk 0:00:04.7]} 43.
Qf3 {[%clk 0:00:02.6]} 43... Qe3 {[%clk 0:00:04.9]} 44. Kg2 {[%clk 0:00:03.7]}
44... Qd2+ {[%clk 0:00:05.5]} 45. Kf1 {[%clk 0:00:04.8]} 45... Qc1+ {[%clk
0:00:05.4]} 46. Kg2 {[%clk 0:00:06.3]} 46... Qd2+ {[%clk 0:00:06.4]} 47. Kh3
{[%clk 0:00:07.2]} 47... Kf6 {[%clk 0:00:06]} 48. Qg2 {[%clk 0:00:04.5]} 48...
Qe3+ {[%clk 0:00:06.8]} 49. Kh2 {[%clk 0:00:05.2]} 49... Ke5 {[%clk 0:00:07.9]}
50. Qg5+ {[%clk 0:00:05.6]} 50... Kxe4 {[%clk 0:00:09]} 51. Qxh5 {[%clk
0:00:07]} 51... Qg3+ {[%clk 0:00:09.6]} 52. Kh1 {[%clk 0:00:08]} 52... f3 {[%clk
0:00:10.3]} 53. Qh7+ {[%clk 0:00:08.4]} 53... Ke3 {[%clk 0:00:11.1]} 54. Qe7+
{[%clk 0:00:09.9]} 54... Kf2 {[%clk 0:00:11.9]} 55. Qg5 {[%clk 0:00:07.9]} 55...
Qh3# {[%clk 0:00:12.5]} 0-1

[Event "*** Titled Tuesday 3|2 Blitz"]
[Site "Chess.com"]
[Date "2016.07.05"]
[Round "4"]
[White "Saitama_Hero"]
[Black "Schemato"]
[Result "0-1"]
[WhiteElo "2096"]
[BlackElo "2205"]
[TimeControl "180+2"]
[EndTime "11:50:44 PDT"]
[Termination "Schemato won on time"]

1. d4 {[%clk 0:03:01.9]} 1... e6 {[%clk 0:03:00.5]} 2. c4 {[%clk 0:03:00.9]}
2... f5 {[%clk 0:03:01.4]} 3. Nf3 {[%clk 0:03:01.2]} 3... Nf6 {[%clk 0:03:02.4]}
4. Nc3 {[%clk 0:03:02.9]} 4... Bb4 {[%clk 0:03:03.1]} 5. Bf4 {[%clk 0:02:45.6]}
5... b6 {[%clk 0:02:59.2]} 6. e3 {[%clk 0:02:45.7]} 6... Bxc3+ {[%clk
0:02:52.8]} 7. bxc3 {[%clk 0:02:45.5]} 7... Bb7 {[%clk 0:02:54.4]} 8. Be2 {[%clk
0:02:45.2]} 8... O-O {[%clk 0:02:54.4]} 9. O-O {[%clk 0:02:45]} 9... d6 {[%clk
0:02:55.7]} 10. a4 {[%clk 0:02:43.4]} 10... a5 {[%clk 0:02:55.8]} 11. Qb3 {[%clk
0:02:33.8]} 11... Qe7 {[%clk 0:02:22.1]} 12. c5 {[%clk 0:02:03.8]} 12... Nbd7
{[%clk 0:01:40.7]} 13. cxd6 {[%clk 0:01:56.1]} 13... cxd6 {[%clk 0:01:41.1]} 14.
c4 {[%clk 0:01:53.5]} 14... Ne4 {[%clk 0:01:25.8]} 15. h4 {[%clk 0:01:13]} 15...
h6 {[%clk 0:01:22.5]} 16. Rfd1 {[%clk 0:01:07.5]} 16... Kh7 {[%clk 0:01:16.2]}
17. h5 {[%clk 0:01:02.2]} 17... Rad8 {[%clk 0:01:01.4]} 18. Qa3 {[%clk
0:00:47.8]} 18... Rfe8 {[%clk 0:00:53.1]} 19. Ne1 {[%clk 0:00:43.5]} 19... e5
{[%clk 0:00:52.7]} 20. dxe5 {[%clk 0:00:43.5]} 20... dxe5 {[%clk 0:00:53.5]} 21.
Qxe7 {[%clk 0:00:45]} 21... Rxe7 {[%clk 0:00:54.2]} 22. Bh2 {[%clk 0:00:46.6]}
22... Nc3 {[%clk 0:00:48.6]} 23. Rd2 {[%clk 0:00:46.7]} 23... Nxe2+ {[%clk
0:00:48.9]} 24. Rxe2 {[%clk 0:00:48.6]} 24... Nc5 {[%clk 0:00:49.6]} 25. Rb2
{[%clk 0:00:46.3]} 25... Re6 {[%clk 0:00:46.5]} 26. Nf3 {[%clk 0:00:45.9]} 26...
Bxf3 {[%clk 0:00:43.9]} 27. gxf3 {[%clk 0:00:47.8]} 27... g6 {[%clk 0:00:27.4]}
28. hxg6+ {[%clk 0:00:46.6]} 28... Kxg6 {[%clk 0:00:29.3]} 29. Rb5 {[%clk
0:00:43.1]} 29... Kf6 {[%clk 0:00:27.5]} 30. Rab1 {[%clk 0:00:43]} 30... Nxa4
{[%clk 0:00:27.6]} 31. R1b3 {[%clk 0:00:34.4]} 31... Nc5 {[%clk 0:00:24.2]} 32.
Rb2 {[%clk 0:00:32.1]} 32... Rdd6 {[%clk 0:00:25.1]} 33. f4 {[%clk 0:00:31.9]}
33... e4 {[%clk 0:00:25.1]} 34. Bg3 {[%clk 0:00:33.4]} 34... Nd3 {[%clk
0:00:23.5]} 35. Rb1 {[%clk 0:00:33.3]} 35... Rc6 {[%clk 0:00:24.6]} 36. Kh2
{[%clk 0:00:32.3]} 36... Ke7 {[%clk 0:00:19.9]} 37. Rxf5 {[%clk 0:00:31.4]}
37... Rxc4 {[%clk 0:00:19.5]} 38. Rd5 {[%clk 0:00:30.5]} 38... Rc2 {[%clk
0:00:19]} 39. Bh4+ {[%clk 0:00:30.2]} 39... Kf7 {[%clk 0:00:18.1]} 40. Rd7+
{[%clk 0:00:27.9]} 40... Ke8 {[%clk 0:00:18.5]} 41. Rd8+ {[%clk 0:00:26.5]}
41... Kf7 {[%clk 0:00:19.8]} 42. Rd7+ {[%clk 0:00:28.1]} 42... Kf8 {[%clk
0:00:18.8]} 43. Kg2 {[%clk 0:00:26.2]} 43... a4 {[%clk 0:00:18.6]} 44. Rb5
{[%clk 0:00:24.1]} 44... Rc5 {[%clk 0:00:15.2]} 45. Rxc5 {[%clk 0:00:22.1]}
45... Nxc5 {[%clk 0:00:15.6]} 46. Ra7 {[%clk 0:00:24]} 46... b5 {[%clk
0:00:15.8]} 47. f5 {[%clk 0:00:25.3]} 47... Ra6 {[%clk 0:00:16.2]} 48. Be7+
{[%clk 0:00:24.9]} 48... Ke8 {[%clk 0:00:15.4]} 49. Rc7 {[%clk 0:00:19.2]} 49...
Nd7 {[%clk 0:00:12.1]} 50. f6 {[%clk 0:00:19.8]} 50... a3 {[%clk 0:00:12.2]} 51.
Bxa3 {[%clk 0:00:12.7]} 51... Rxa3 {[%clk 0:00:12.8]} 52. f7+ {[%clk 0:00:13.4]}
52... Kxf7 {[%clk 0:00:12.8]} 53. Rxd7+ {[%clk 0:00:15.1]} 53... Ke6 {[%clk
0:00:13.9]} 54. Rb7 {[%clk 0:00:16.3]} 54... Rb3 {[%clk 0:00:13]} 55. Rb6+
{[%clk 0:00:17.8]} 55... Kd5 {[%clk 0:00:14.1]} 56. Rxh6 {[%clk 0:00:18.2]}
56... b4 {[%clk 0:00:12.2]} 57. Rh5+ {[%clk 0:00:11.4]} 57... Kc4 {[%clk
0:00:12.9]} 58. Re5 {[%clk 0:00:12.5]} 58... Kd3 {[%clk 0:00:13.8]} 59. Rd5+
{[%clk 0:00:12.8]} 59... Ke2 {[%clk 0:00:13.5]} 60. Rd4 {[%clk 0:00:13.5]} 60...
Rb1 {[%clk 0:00:11.8]} 61. Rxe4 {[%clk 0:00:15]} 61... b3 {[%clk 0:00:13.4]} 62.
Rb4 {[%clk 0:00:03.2]} 62... Kd3 {[%clk 0:00:09.5]} 63. e4 {[%clk 0:00:04.5]}
63... Kc3 {[%clk 0:00:10.1]} 64. Rb6 {[%clk 0:00:03]} 64... Re1 {[%clk 0:00:11]}
0-1

[Event "*** Titled Tuesday 3|2 Blitz"]
[Site "Chess.com"]
[Date "2016.07.05"]
[Round "4"]
[White "Fandorine"]
[Black "MaestroASK"]
[Result "1-0"]
[WhiteElo "2629"]
[BlackElo "2481"]
[TimeControl "180+2"]
[EndTime "11:51:36 PDT"]
[Termination "Fandorine won by resignation"]

1. e4 {[%clk 0:03:01.9]} 1... d6 {[%clk 0:02:59.6]} 2. d4 {[%clk 0:03:02.2]}
2... g6 {[%clk 0:03:01.5]} 3. Nc3 {[%clk 0:03:02.4]} 3... c6 {[%clk 0:03:02.6]}
4. h3 {[%clk 0:03:03.6]} 4... e5 {[%clk 0:03:03.2]} 5. Be3 {[%clk 0:03:03.1]}
5... Nd7 {[%clk 0:03:02.7]} 6. g4 {[%clk 0:03:03.6]} 6... Bh6 {[%clk 0:03:01.4]}
7. Qd2 {[%clk 0:03:03.8]} 7... Bxe3 {[%clk 0:03:01.5]} 8. Qxe3 {[%clk
0:03:05.7]} 8... Ngf6 {[%clk 0:02:59.2]} 9. O-O-O {[%clk 0:03:06]} 9... h5
{[%clk 0:02:58.6]} 10. g5 {[%clk 0:03:06.4]} 10... Nh7 {[%clk 0:02:59]} 11. h4
{[%clk 0:03:06.5]} 11... O-O {[%clk 0:02:56.1]} 12. f4 {[%clk 0:03:06.9]} 12...
exf4 {[%clk 0:02:56.9]} 13. Qxf4 {[%clk 0:03:08.5]} 13... Qe7 {[%clk 0:02:57.7]}
14. Nf3 {[%clk 0:03:09.2]} 14... Nb6 {[%clk 0:02:58.1]} 15. Bd3 {[%clk
0:03:07.2]} 15... Bg4 {[%clk 0:02:56.7]} 16. Rde1 {[%clk 0:03:08.7]} 16... Rad8
{[%clk 0:02:52]} 17. Nd2 {[%clk 0:02:57.8]} 17... Rfe8 {[%clk 0:02:48.6]} 18. a3
{[%clk 0:02:55.9]} 18... Nf8 {[%clk 0:02:45.2]} 19. Nc4 {[%clk 0:02:53.3]} 19...
Ne6 {[%clk 0:02:36.4]} 20. Qf2 {[%clk 0:02:53.7]} 20... Nxc4 {[%clk 0:02:21.6]}
21. Bxc4 {[%clk 0:02:55.6]} 21... Qc7 {[%clk 0:02:15.1]} 22. Rhf1 {[%clk
0:02:47.9]} 22... Bh3 {[%clk 0:02:11.5]} 23. Rg1 {[%clk 0:02:48]} 23... Bg4
{[%clk 0:02:12.1]} 24. Bb3 {[%clk 0:02:37.7]} 24... Rd7 {[%clk 0:01:59.1]} 25.
Kb1 {[%clk 0:02:38]} 25... Qd8 {[%clk 0:01:53.4]} 26. e5 {[%clk 0:02:24.5]}
26... d5 {[%clk 0:01:49.1]} 27. Na4 {[%clk 0:01:54.8]} 27... b5 {[%clk
0:01:45.2]} 28. Nc3 {[%clk 0:01:46.8]} 28... Qb6 {[%clk 0:01:45.8]} 29. Rxg4
{[%clk 0:01:39.8]} 29... hxg4 {[%clk 0:01:45.8]} 30. Ne2 {[%clk 0:01:41.7]}
30... Ng7 {[%clk 0:01:39.5]} 31. Rg1 {[%clk 0:01:33.2]} 31... Rxe5 {[%clk
0:01:37.8]} 32. Rxg4 {[%clk 0:01:34.1]} 32... Re8 {[%clk 0:01:20.4]} 33. Ng3
{[%clk 0:01:30.2]} 33... Rde7 {[%clk 0:01:16.5]} 34. Rf4 {[%clk 0:01:20.8]}
34... a5 {[%clk 0:01:13.1]} 35. c3 {[%clk 0:01:21.7]} 35... b4 {[%clk
0:01:10.3]} 36. cxb4 {[%clk 0:01:21.5]} 36... axb4 {[%clk 0:01:11.2]} 37. a4
{[%clk 0:01:23.1]} 37... Qa7 {[%clk 0:00:58.6]} 38. Rf6 {[%clk 0:01:13.3]} 38...
Ne6 {[%clk 0:00:46.8]} 39. h5 {[%clk 0:00:39.7]} 39... Qxd4 {[%clk 0:00:46.3]}
40. Qh2 {[%clk 0:00:41.3]} 40... Nxg5 {[%clk 0:00:45.4]} 41. Rxc6 {[%clk
0:00:42.1]} 41... Re6 {[%clk 0:00:35.7]} 42. Rxe6 {[%clk 0:00:37.5]} 42... Rxe6
{[%clk 0:00:33.8]} 43. hxg6 {[%clk 0:00:39]} 43... fxg6 {[%clk 0:00:34.4]} 44.
Ka2 {[%clk 0:00:40]} 44... Nf7 {[%clk 0:00:33.7]} 45. Qg2 {[%clk 0:00:38.2]}
45... Re5 {[%clk 0:00:22.4]} 46. Nf5 {[%clk 0:00:29.8]} 46... Rxf5 {[%clk
0:00:17.4]} 47. Qxg6+ {[%clk 0:00:30.8]} 47... Kf8 {[%clk 0:00:18.5]} 48. Qxf5
{[%clk 0:00:32.1]} 48... Ke7 {[%clk 0:00:16.6]} 49. Bxd5 {[%clk 0:00:32.5]}
49... Nd8 {[%clk 0:00:14.7]} 50. Bb3 {[%clk 0:00:28.6]} 50... Kd6 {[%clk
0:00:12.6]} 51. Qg6+ {[%clk 0:00:27]} 51... Kc7 {[%clk 0:00:13.2]} 52. Qg3+
{[%clk 0:00:25.9]} 52... Qd6 {[%clk 0:00:13.6]} 53. Qg7+ {[%clk 0:00:26.2]}
53... Kb6 {[%clk 0:00:13.9]} 54. Qg5 {[%clk 0:00:27.3]} 54... Kc7 {[%clk
0:00:14.5]} 55. Qb5 {[%clk 0:00:28]} 55... Qb6 {[%clk 0:00:14.9]} 56. Qc4+
{[%clk 0:00:27.3]} 56... Kb8 {[%clk 0:00:15.4]} 57. Qf4+ {[%clk 0:00:24.5]}
57... Ka7 {[%clk 0:00:14.8]} 58. Bd5 {[%clk 0:00:25.3]} 58... Ka6 {[%clk
0:00:13.7]} 59. Qf1+ {[%clk 0:00:23.4]} 59... Ka5 {[%clk 0:00:14.2]} 60. Bb3
{[%clk 0:00:17.1]} 60... Nc6 {[%clk 0:00:14.6]} 61. Qf5+ {[%clk 0:00:18.1]}
61... Ka6 {[%clk 0:00:15.3]} 62. Bc4+ {[%clk 0:00:19.5]} 62... Ka7 {[%clk
0:00:16.4]} 63. Qd7+ {[%clk 0:00:19.9]} 63... Kb8 {[%clk 0:00:17]} 64. Qd6+
{[%clk 0:00:20.9]} 64... Qc7 {[%clk 0:00:17.1]} 65. Qc5 {[%clk 0:00:21.4]} 65...
b3+ {[%clk 0:00:15.3]} 66. Bxb3 {[%clk 0:00:22.4]} 66... Na5 {[%clk 0:00:14.9]}
67. Qxc7+ {[%clk 0:00:22]} 67... Kxc7 {[%clk 0:00:16.5]} 68. Bf7 {[%clk
0:00:21.5]} 68... Kb6 {[%clk 0:00:17.4]} 69. b4 {[%clk 0:00:21.8]} 69... Nc6
{[%clk 0:00:19]} 70. Ka3 {[%clk 0:00:23.3]} 70... Nd4 {[%clk 0:00:20.1]} 71. Bg6
{[%clk 0:00:23.5]} 71... Nc6 {[%clk 0:00:20.8]} 72. Be4 {[%clk 0:00:23.9]} 72...
Ne5 {[%clk 0:00:21.6]} 73. Kb3 {[%clk 0:00:24.4]} 73... Nd7 {[%clk 0:00:22.6]}
74. a5+ {[%clk 0:00:25.4]} 74... Kb5 {[%clk 0:00:23.1]} 75. Bd3+ {[%clk
0:00:25.4]} 75... Kc6 {[%clk 0:00:24.3]} 76. Ka4 {[%clk 0:00:26.9]} 76... Ne5
{[%clk 0:00:24.3]} 77. Be4+ {[%clk 0:00:28.3]} 77... Kc7 {[%clk 0:00:25.5]} 78.
b5 {[%clk 0:00:29.8]} 78... Nc4 {[%clk 0:00:26.5]} 79. Kb4 {[%clk 0:00:31.2]}
79... Nd6 {[%clk 0:00:27.6]} 80. Bh1 {[%clk 0:00:32.3]} 80... Kb8 {[%clk
0:00:28.3]} 81. b6 {[%clk 0:00:32.8]} 81... Nc8 {[%clk 0:00:29.2]} 82. Kb5
{[%clk 0:00:33.2]} 82... Nd6+ {[%clk 0:00:29.8]} 83. Kc5 {[%clk 0:00:34.7]}
83... Nc8 {[%clk 0:00:29.4]} 84. a6 {[%clk 0:00:35.5]} 84... Na7 {[%clk
0:00:29]} 85. bxa7+ {[%clk 0:00:32]} 85... Kxa7 {[%clk 0:00:30.9]} 86. Kb5
{[%clk 0:00:33.1]} 86... Kb8 {[%clk 0:00:32]} 87. Kb6 {[%clk 0:00:34.6]} 1-0

[Event "*** Titled Tuesday 3|2 Blitz"]
[Site "Chess.com"]
[Date "2016.07.05"]
[Round "5"]
[White "GeorgMeier"]
[Black "popov_m"]
[Result "1-0"]
[WhiteElo "2686"]
[BlackElo "2211"]
[TimeControl "180+2"]
[EndTime "11:56:48 PDT"]
[Termination "GeorgMeier won by resignation"]

1. Nf3 {[%clk 0:03:01.9]} 1... Nf6 {[%clk 0:02:56.4]} 2. g3 {[%clk 0:03:03.2]}
2... g6 {[%clk 0:02:57.9]} 3. Bg2 {[%clk 0:03:04.6]} 3... Bg7 {[%clk 0:02:59.6]}
4. O-O {[%clk 0:03:06.5]} 4... O-O {[%clk 0:03:00.9]} 5. d4 {[%clk 0:03:07.8]}
5... d6 {[%clk 0:03:01]} 6. b3 {[%clk 0:03:09.1]} 6... Bf5 {[%clk 0:02:59.8]} 7.
Bb2 {[%clk 0:03:09.9]} 7... Nc6 {[%clk 0:03:00.3]} 8. Nbd2 {[%clk 0:03:11.1]}
8... e5 {[%clk 0:02:51.4]} 9. dxe5 {[%clk 0:03:11.1]} 9... Ng4 {[%clk
0:02:51.7]} 10. Nd4 {[%clk 0:02:50.9]} 10... Nxd4 {[%clk 0:02:51.1]} 11. Bxd4
{[%clk 0:02:51.6]} 11... dxe5 {[%clk 0:02:26.8]} 12. Bc5 {[%clk 0:02:50.9]}
12... Re8 {[%clk 0:02:24.6]} 13. Bxb7 {[%clk 0:02:50.4]} 13... Rb8 {[%clk
0:02:21.8]} 14. Bc6 {[%clk 0:02:50.9]} 14... Bd7 {[%clk 0:01:56.3]} 15. Bxd7
{[%clk 0:02:51.6]} 15... Qxd7 {[%clk 0:01:58.2]} 16. e4 {[%clk 0:02:52.7]} 16...
Qc6 {[%clk 0:01:49]} 17. Qxg4 {[%clk 0:02:53.3]} 17... Qxc5 {[%clk 0:01:49.5]}
18. Nc4 {[%clk 0:02:54.8]} 18... Rbd8 {[%clk 0:01:46.2]} 19. Rad1 {[%clk
0:02:55.7]} 19... Rd4 {[%clk 0:01:47.2]} 20. c3 {[%clk 0:02:56.8]} 20... Rxc4
{[%clk 0:01:41.6]} 21. bxc4 {[%clk 0:02:58]} 21... Qxc4 {[%clk 0:01:43.5]} 22.
Qd7 {[%clk 0:02:55.2]} 22... Rf8 {[%clk 0:01:42.5]} 23. Qd5 {[%clk 0:02:56.4]}
23... Qxc3 {[%clk 0:01:34.3]} 24. Rc1 {[%clk 0:02:57.1]} 24... Qa3 {[%clk
0:01:24.6]} 25. Rxc7 {[%clk 0:02:58]} 25... a5 {[%clk 0:01:21.4]} 26. Rb1 {[%clk
0:02:58.7]} 26... a4 {[%clk 0:01:19.3]} 27. Kg2 {[%clk 0:02:59.4]} 1-0